fUST/lending_fUST_20240611
["ID","MTS","AMOUNT","RATE_DAILY","PERIOD"]
[328987419,1718043056475,-720.52,0.00020273,2]
[328987420,1718043056486,-500.0,0.00020273,2]
[328987421,1718043056496,-2279.25,0.00020273,2]
[328987422,1718043056509,-500.0,0.00020273,2]
[328987423,1718043056519,-500.0,0.00020273,2]
[328987424,1718043056530,-151.0,0.00020273,2]
[328987425,1718043056542,-500.0,0.00020273,2]
[328987426,1718043056556,-500.0,0.00020273,2]
[328987427,1718043056565,-500.0,0.00020273,2]
[328987428,1718043056575,-500.0,0.00020273,2]
[328987429,1718043056585,-500.0,0.00020273,2]
[328987430,1718043056596,-1339.18,0.00020273,2]
[328987431,1718043056607,-419.64338964,0.00020273,2]
[328987432,1718043056617,-500.0,0.00020273,2]
[328987433,1718043056628,-5884.81,0.00020273,2]
[328987434,1718043056639,-1045.86,0.00020273,2]
[328987435,1718043056650,-151.0,0.00020273,2]
[328987436,1718043056661,-1375.25,0.00020273,2]
[328987437,1718043056672,-151.0,0.00020273,2]
[328987438,1718043056682,-500.0,0.00020273,2]
[328987439,1718043056692,-709.89,0.00020273,2]
[328987440,1718043056702,-151.0,0.00020273,2]
[328987441,1718043056712,-500.0,0.00020273,2]
[328987442,1718043056723,-517.23,0.00020273,2]
[328987443,1718043056734,-564.21518899,0.00020273,2]
[328987444,1718043056744,-2312.91,0.00020273,2]
[328987445,1718043056755,-500.0,0.00020273,2]
[328987446,1718043056765,-500.0,0.00020273,2]
[328987447,1718043056775,-665.55,0.00020273,2]
[328987448,1718043056786,-500.0,0.00020273,2]
[328987449,1718043056796,-500.0,0.00020273,2]
[328987450,1718043056810,-500.0,0.00020273,2]
[328987451,1718043056819,-209.01511246,0.00020273,2]
[328987452,1718043056829,-1274.17,0.00020273,2]
[328987453,1718043056839,-500.0,0.00020273,2]
[328987454,1718043056848,-500.0,0.00020273,2]
[328987455,1718043056858,-500.0,0.00020273,2]
[328987456,1718043056869,-500.0,0.00020273,2]
[328987457,1718043056879,-1002.08,0.00020273,2]
[328987458,1718043056889,-500.0,0.00020273,2]
[328987459,1718043056899,-500.0,0.00020273,2]
[328987460,1718043056909,-500.0,0.00020273,2]
[328987461,1718043056919,-500.0,0.00020273,2]
[328987462,1718043056929,-500.0,0.00020273,2]
[328987463,1718043056944,-809.15,0.00020273,2]
[328987464,1718043056954,-343.81,0.00020273,2]
[328987465,1718043056965,-555.44,0.00020273,2]
[328987466,1718043056975,-429.86883739,0.00020273,2]
[328987467,1718043056985,-500.0,0.00020273,2]
[328987468,1718043056995,-3106.63,0.00020273,2]
[328987469,1718043057005,-1322.06,0.00020273,2]
[328987470,1718043057014,-500.0,0.00020273,2]
[328987471,1718043057024,-500.0,0.00020273,2]
[328987472,1718043057034,-500.0,0.00020273,2]
[328987473,1718043057044,-500.0,0.00020546,2]
[328987474,1718043057058,-1272.23,0.00020546,2]
[328987475,1718043057067,-2300.66,0.00020546,2]
[328987476,1718043057076,-500.0,0.00020547,2]
[328987477,1718043057086,-500.0,0.00020547,2]
[328987478,1718043057096,-320.99,0.00020547,2]
[328987479,1718043057105,-500.0,0.00020547,2]
[328987480,1718043057115,-590.69,0.00020547,2]
[328987481,1718043057125,-500.0,0.00020547,2]
[328987482,1718043057134,-500.0,0.00020547,2]
[328987483,1718043057143,-500.0,0.00020547,2]
[328987484,1718043057153,-500.0,0.00020547,2]
[328987485,1718043057162,-500.0,0.00020547,2]
[328987486,1718043057171,-500.0,0.00020547,2]
[328987487,1718043057181,-500.0,0.00020547,2]
[328987488,1718043057190,-293.50291165,0.00020547,2]
[328987489,1718043057199,-644.01,0.00020547,2]
[328987490,1718043057209,-500.0,0.00020547,2]
[328987491,1718043057218,-500.0,0.00020547,2]
[328987492,1718043057227,-500.0,0.00020547,2]
[328987493,1718043057236,-500.0,0.00020547,2]
[328987494,1718043057246,-500.0,0.00020547,2]
[328987495,1718043057256,-500.0,0.00020547,2]
[328987496,1718043057267,-340.12353295,0.00020547,2]
[328987497,1718043057276,-500.0,0.00020547,2]
[328987498,1718043057286,-500.0,0.00020547,2]
[328987499,1718043057295,-500.0,0.00020547,2]
[328987500,1718043057307,-590.84,0.00020547,2]
[328987501,1718043057317,-500.0,0.00020547,2]
[328987502,1718043057326,-500.0,0.00020547,2]
[328987503,1718043057335,-757.38,0.00020547,2]
[328987504,1718043057344,-218.029714,0.00020547,2]
[328987505,1718043057354,-500.0,0.00020547,2]
[328987506,1718043057364,-500.0,0.00020547,2]
[328987507,1718043057373,-322.94445496,0.00020547,2]
[328987508,1718043057383,-190.80036327,0.00020547,2]
[328987509,1718043057391,-500.0,0.00020547,2]
[328987510,1718043057401,-500.0,0.00020547,2]
[328987511,1718043057410,-732.29,0.00020547,2]
[328987512,1718043057419,-500.0,0.00020547,2]
[328987513,1718043057428,-500.0,0.00020547,2]
[328987514,1718043057438,-450.77100078,0.00020547,2]
[328987515,1718043057447,-608.33,0.00020547,2]
[328987516,1718043057458,-500.0,0.00020547,2]
[328987517,1718043057472,-720.52,0.00020547,2]
[328987518,1718043057481,-500.0,0.00020547,2]
[328987519,1718043057491,-2279.25,0.00020547,2]
[328987520,1718043057502,-500.0,0.00020547,2]
[328987521,1718043057511,-500.0,0.00020547,2]
[328987522,1718043057520,-341.9,0.00020547,2]
[328987523,1718043057530,-278.21,0.00020547,2]
[328987524,1718043057541,-500.0,0.00020547,2]
[328987525,1718043057553,-500.0,0.00020547,2]
[328987526,1718043057564,-1339.18,0.00020547,2]
[328987527,1718043057573,-500.0,0.00020547,2]
[328987528,1718043057583,-5884.81,0.00020547,2]
[328987529,1718043057592,-1045.86,0.00020547,2]
[328987530,1718043057602,-1375.25,0.00020547,2]
[328987531,1718043057612,-500.0,0.00020547,2]
[328987532,1718043057622,-709.89,0.00020547,2]
[328987533,1718043057631,-500.0,0.00020547,2]
[328987534,1718043057642,-2312.91,0.00020547,2]
[328987535,1718043057651,-500.0,0.00020547,2]
[328987536,1718043057661,-500.0,0.00020547,2]
[328987537,1718043057670,-665.55,0.00020547,2]
[328987538,1718043057680,-500.0,0.00020547,2]
[328987539,1718043057690,-500.0,0.00020547,2]
[328987540,1718043057699,-464.43241486,0.00020547,2]
[328987541,1718043057709,-1274.17,0.00020547,2]
[328987542,1718043057718,-500.0,0.00020547,2]
[328987543,1718043057728,-500.0,0.00020547,2]
[328987544,1718043057738,-500.0,0.00020547,2]
[328987545,1718043057748,-500.0,0.00020547,2]
[328987546,1718043057759,-1002.08,0.00020547,2]
[328987547,1718043057770,-220.89,0.00020547,2]
[328987548,1718043057779,-293.95,0.00020547,2]
[328987549,1718043057789,-500.0,0.00020547,2]
[328987550,1718043057802,-500.0,0.00020547,2]
[328987551,1718043057812,-500.0,0.00020547,2]
[328987552,1718043057822,-809.15,0.00020547,2]
[328987553,1718043057832,-555.44,0.00020547,2]
[328987554,1718043057842,-151.0,0.00020547,2]
[328987555,1718043057851,-500.0,0.00020547,2]
[328987556,1718043057861,-151.0,0.00020547,2]
[328987557,1718043057871,-304.887732,0.00020547,2]
[328987558,1718043057880,-3106.63,0.00020547,2]
[328987559,1718043057890,-304.887732,0.00020547,2]
[328987560,1718043057899,-1322.06,0.00020547,2]
[328987561,1718043057908,-500.0,0.00020547,2]
[328987562,1718043057918,-500.0,0.00020547,2]
[328987563,1718043057928,-500.0,0.00020547,2]
[328987564,1718043057937,-319.2,0.00020776,5]
[328987565,1718043057948,-2300.66,0.0002082,2]
[328987566,1718043057958,-432.45943735,0.00020821,15]
[328987567,1718043057967,-500.0,0.00020821,2]
[328987568,1718043057977,-499.32209147,0.00020821,2]
[328987569,1718043057986,-590.69,0.00020821,2]
[328987570,1718043057996,-500.0,0.00020821,2]
[328987571,1718043058005,-500.0,0.00020821,2]
[328987572,1718043058014,-500.0,0.00020821,2]
[328987573,1718043058024,-564.9233705,0.00020821,2]
[328987574,1718043058033,-500.0,0.00020821,2]
[328987575,1718043058043,-500.0,0.00020821,2]
[328987576,1718043058054,-500.0,0.00020821,2]
[328987577,1718043058063,-644.01,0.00020821,2]
[328987578,1718043058072,-500.0,0.00020821,2]
[328987579,1718043058082,-500.0,0.00020821,2]
[328987580,1718043058091,-500.0,0.00020821,2]
[328987581,1718043058100,-500.0,0.00020821,2]
[328987582,1718043058110,-484.67,0.00020821,2]
[328987583,1718043058121,-153.88,0.00020821,2]
[328987584,1718043058130,-500.0,0.00020821,2]
[328987585,1718043058140,-346.05,0.00020821,2]
[328987586,1718043058149,-500.0,0.00020821,2]
[328987587,1718043058158,-590.84,0.00020821,2]
[328987588,1718043058168,-500.0,0.00020821,2]
[328987589,1718043058176,-151.0,0.00020821,2]
[328987590,1718043058186,-500.0,0.00020821,2]
[328987591,1718043058195,-757.38,0.00020821,2]
[328987592,1718043058204,-500.0,0.00020821,2]
[328987593,1718043058213,-151.0,0.00020821,2]
[328987594,1718043058223,-500.0,0.00020821,2]
[328987595,1718043058232,-500.0,0.00020821,2]
[328987596,1718043058241,-206.369979,0.00020821,2]
[328987597,1718043058251,-206.369979,0.00020821,2]
[328987598,1718043058261,-500.0,0.00020821,2]
[328987599,1718043058270,-151.0,0.00020821,2]
[328987600,1718043058280,-732.29,0.00020821,2]
[328987601,1718043058289,-499.51,0.00020821,2]
[328987602,1718043058300,-151.0,0.00020821,2]
[328987603,1718043058310,-192.512744,0.00020821,2]
[328987604,1718043058319,-192.512744,0.00020821,2]
[328987605,1718043058329,-608.33,0.00020821,2]
[328987606,1718043058338,-500.0,0.00020821,2]
[328987607,1718043058348,-720.52,0.00020821,2]
[328987608,1718043058358,-500.0,0.00020821,2]
[328987609,1718043058367,-2279.25,0.00020821,2]
[328987610,1718043058376,-500.0,0.00020821,2]
[328987611,1718043058386,-500.0,0.00020821,2]
[328987612,1718043058395,-500.0,0.00020821,2]
[328987613,1718043058404,-500.0,0.00020821,2]
[328987614,1718043058414,-1339.18,0.00020821,2]
[328987615,1718043058424,-500.0,0.00020821,2]
[328987616,1718043058433,-5884.81,0.00020821,2]
[328987617,1718043058443,-1045.86,0.00020821,2]
[328987618,1718043058452,-1375.25,0.00020821,2]
[328987619,1718043058465,-500.0,0.00020821,2]
[328987620,1718043058474,-709.89,0.00020821,2]
[328987621,1718043058483,-500.0,0.00020821,2]
[328987622,1718043058493,-2312.91,0.00020821,2]
[328987623,1718043058503,-500.0,0.00020821,2]
[328987624,1718043058512,-500.0,0.00020821,2]
[328987625,1718043058522,-665.55,0.00020821,2]
[328987626,1718043058532,-500.0,0.00020821,2]
[328987627,1718043058544,-500.0,0.00020821,2]
[328987628,1718043058554,-1274.17,0.00020821,2]
[328987629,1718043058564,-500.0,0.00020821,2]
[328987630,1718043058574,-500.0,0.00020821,2]
[328987631,1718043058584,-504.30676387,0.00020821,2]
[328987632,1718043058594,-1002.08,0.00020821,2]
[328987633,1718043058604,-500.0,0.00020821,2]
[328987634,1718043058614,-500.0,0.00020821,2]
[328987635,1718043058623,-500.0,0.00020821,2]
[328987636,1718043058633,-809.15,0.00020821,2]
[328987637,1718043058643,-555.44,0.00020821,2]
[328987638,1718043058652,-500.0,0.00020821,2]
[328987639,1718043058662,-3106.63,0.00020821,2]
[328987640,1718043058671,-520.49,0.00020821,2]
[328987641,1718043058779,-1322.06,0.00020821,2]
[328987642,1718043058789,-500.0,0.00020821,2]
[328987643,1718043058801,-500.0,0.00020821,2]
[328987644,1718043058811,-500.0,0.00020999,2]
[328987645,1718043058820,-1272.23,0.00020999,2]
[328987646,1718043058829,-7268.3702899,0.00021,2]
[328987647,1718043058839,-151.0,0.00021,2]
[328987648,1718043058851,-151.0,0.00021,2]
[328987649,1718043058860,-151.0,0.00021,2]
[328987650,1718043058870,-151.0,0.00021,2]
[328987651,1718043058880,-1177.14017106,0.00021002,2]
[328987652,1718043058889,-151.0,0.00021002,2]
[328987653,1718043058899,-2300.66,0.00021094,2]
[328987654,1718043058908,-500.0,0.00021095,2]
[328987655,1718043058918,-590.69,0.00021095,2]
[328987656,1718043058928,-500.0,0.00021095,2]
[328987657,1718043058937,-500.0,0.00021095,2]
[328987658,1718043058947,-500.0,0.00021095,2]
[328987659,1718043058956,-500.0,0.00021095,2]
[328987660,1718043058965,-500.0,0.00021095,2]
[328987661,1718043058975,-644.01,0.00021095,2]
[328987662,1718043058984,-500.0,0.00021095,2]
[328987663,1718043058993,-500.0,0.00021095,2]
[328987664,1718043059003,-500.0,0.00021095,2]
[328987665,1718043059012,-500.0,0.00021095,2]
[328987666,1718043059021,-340.8,0.00021095,2]
[328987667,1718043059030,-500.0,0.00021095,2]
[328987668,1718043059040,-590.84,0.00021095,2]
[328987669,1718043059049,-400.97,0.00021095,2]
[328987670,1718043059060,-500.0,0.00021095,2]
[328987671,1718043059070,-757.38,0.00021095,2]
[328987672,1718043059079,-500.0,0.00021095,2]
[328987673,1718043059089,-193.89,0.00021095,2]
[328987674,1718043059098,-500.0,0.00021095,2]
[328987675,1718043059108,-732.29,0.00021095,2]
[328987676,1718043059118,-608.33,0.00021095,2]
[328987677,1718043059128,-210.33026951,0.00021095,2]
[328987678,1718043059138,-720.52,0.00021095,2]
[328987679,1718043059148,-329.62,0.00021095,2]
[328987680,1718043059158,-2279.25,0.00021095,2]
[328987681,1718043059167,-500.0,0.00021095,2]
[328987682,1718043059176,-500.0,0.00021095,2]
[328987683,1718043059186,-500.0,0.00021095,2]
[328987684,1718043059196,-1339.18,0.00021095,2]
[328987685,1718043059206,-500.0,0.00021095,2]
[328987686,1718043059216,-5884.81,0.00021095,2]
[328987687,1718043059226,-1045.86,0.00021095,2]
[328987688,1718043059237,-1375.25,0.00021095,2]
[328987689,1718043059247,-500.0,0.00021095,2]
[328987690,1718043059256,-709.89,0.00021095,2]
[328987691,1718043059266,-500.0,0.00021095,2]
[328987692,1718043059276,-2312.91,0.00021095,2]
[328987693,1718043059287,-500.0,0.00021095,2]
[328987694,1718043059297,-665.55,0.00021095,2]
[328987695,1718043059308,-500.0,0.00021095,2]
[328987696,1718043059318,-174.15,0.00021095,2]
[328987697,1718043059328,-1274.17,0.00021095,2]
[328987698,1718043059338,-500.0,0.00021095,2]
[328987699,1718043059348,-500.0,0.00021095,2]
[328987700,1718043059358,-1002.08,0.00021095,2]
[328987701,1718043059368,-500.0,0.00021095,2]
[328987702,1718043059378,-500.0,0.00021095,2]
[328987703,1718043059388,-500.0,0.00021095,2]
[328987704,1718043059398,-809.15,0.00021095,2]
[328987705,1718043059408,-555.44,0.00021095,2]
[328987706,1718043059418,-500.0,0.00021095,2]
[328987707,1718043059427,-3106.63,0.00021095,2]
[328987708,1718043059437,-1322.06,0.00021095,2]
[328987709,1718043059448,-500.0,0.00021095,2]
[328987710,1718043059460,-500.0,0.00021095,2]
[328987711,1718043059472,-500.0,0.00021368,2]
[328987712,1718043059482,-1272.23,0.00021368,2]
[328987713,1718043059493,-2300.66,0.00021368,2]
[328987714,1718043059504,-2300.66,0.00021368,2]
[328987715,1718043059514,-2300.66,0.00021368,2]
[328987716,1718043059524,-2300.66,0.00021368,2]
[328987717,1718043059533,-2300.72417536,0.00021368,2]
[328987718,1718043059544,-500.0,0.00021369,2]
[328987719,1718043059555,-590.69,0.00021369,2]
[328987720,1718043059564,-500.0,0.00021369,2]
[328987721,1718043059573,-500.0,0.00021369,2]
[328987722,1718043059583,-500.0,0.00021369,2]
[328987723,1718043059592,-500.0,0.00021369,2]
[328987724,1718043059602,-500.0,0.00021369,2]
[328987725,1718043059612,-644.01,0.00021369,2]
[328987726,1718043059622,-500.0,0.00021369,2]
[328987727,1718043059632,-500.0,0.00021369,2]
[328987728,1718043059642,-372.11,0.00021369,2]
[328987729,1718043059652,-500.0,0.00021369,2]
[328987730,1718043059662,-151.0,0.00021369,2]
[328987731,1718043059672,-500.0,0.00021369,2]
[328987732,1718043059681,-590.84,0.00021369,2]
[328987733,1718043059691,-500.0,0.00021369,2]
[328987734,1718043059700,-757.38,0.00021369,2]
[328987735,1718043059710,-157.41417749,0.00021369,2]
[328987736,1718043059720,-500.0,0.00021369,2]
[328987737,1718043059730,-732.29,0.00021369,2]
[328987738,1718043059739,-608.33,0.00021369,2]
[328987739,1718043059749,-720.52,0.00021369,2]
[328987740,1718043059759,-2279.25,0.00021369,2]
[328987741,1718043059768,-500.0,0.00021369,2]
[328987742,1718043059778,-500.0,0.00021369,2]
[328987743,1718043059788,-539.86381427,0.00021369,2]
[328987744,1718043059797,-1339.18,0.00021369,2]
[328987745,1718043059810,-500.0,0.00021369,2]
[328987746,1718043059822,-5884.81,0.00021369,2]
[328987747,1718043059834,-1045.86,0.00021369,2]
[328987748,1718043059844,-1375.25,0.00021369,2]
[328987749,1718043059853,-500.0,0.00021369,2]
[328987750,1718043059863,-709.89,0.00021369,2]
[328987751,1718043059873,-500.0,0.00021369,2]
[328987752,1718043059882,-2312.91,0.00021369,2]
[328987753,1718043059892,-500.0,0.00021369,2]
[328987754,1718043059902,-665.55,0.00021369,2]
[328987755,1718043059911,-500.0,0.00021369,2]
[328987756,1718043059921,-1274.17,0.00021369,2]
[328987757,1718043059931,-210.19,0.00021369,2]
[328987758,1718043059942,-500.0,0.00021369,2]
[328987759,1718043059953,-1002.08,0.00021369,2]
[328987760,1718043059962,-500.0,0.00021369,2]
[328987761,1718043059973,-277.89649801,0.00021369,2]
[328987762,1718043059983,-500.0,0.00021369,2]
[328987763,1718043059993,-809.15,0.00021369,2]
[328987764,1718043060003,-555.44,0.00021369,2]
[328987765,1718043060013,-151.0,0.00021369,2]
[328987766,1718043060023,-500.0,0.00021369,2]
[328987767,1718043060037,-304.887732,0.00021369,2]
[328987768,1718043060048,-304.887732,0.00021369,2]
[328987769,1718043060060,-3106.63,0.00021369,2]
[328987770,1718043060070,-1322.06,0.00021369,2]
[328987771,1718043060080,-500.0,0.00021369,2]
[328987772,1718043060090,-500.0,0.00021369,2]
[328987773,1718043060101,-319.2,0.00021522,5]
[328987774,1718043060112,-500.0,0.00021642,2]
[328987775,1718043060122,-1272.23,0.00021642,2]
[328987776,1718043060135,-500.0,0.00021643,2]
[328987777,1718043060145,-590.69,0.00021643,2]
[328987778,1718043060155,-500.0,0.00021643,2]
[328987779,1718043060166,-500.0,0.00021643,2]
[328987780,1718043060176,-500.0,0.00021643,2]
[328987781,1718043060186,-151.0,0.00021643,2]
[328987782,1718043060196,-551.51,0.00021643,2]
[328987783,1718043060206,-151.0,0.00021643,2]
[328987784,1718043060217,-405.25,0.00021643,2]
[328987785,1718043060228,-644.01,0.00021643,2]
[328987786,1718043060240,-432.35,0.00021643,2]
[328987787,1718043060250,-500.0,0.00021643,2]
[328987788,1718043060261,-500.0,0.00021643,2]
[328987789,1718043060283,-220.28757969,0.00021643,2]
[328987790,1718043060293,-590.84,0.00021643,2]
[328987791,1718043060304,-500.0,0.00021643,2]
[328987792,1718043060326,-757.38,0.00021643,2]
[328987793,1718043060336,-151.0,0.00021643,2]
[328987794,1718043060348,-206.369979,0.00021643,2]
[328987795,1718043060358,-206.369979,0.00021643,2]
[328987796,1718043060367,-500.0,0.00021643,2]
[328987797,1718043060377,-151.0,0.00021643,2]
[328987798,1718043060388,-732.29,0.00021643,2]
[328987799,1718043060399,-151.0,0.00021643,2]
[328987800,1718043060409,-192.512744,0.00021643,2]
[328987801,1718043060420,-192.512744,0.00021643,2]
[328987802,1718043060430,-608.33,0.00021643,2]
[328987803,1718043060441,-720.52,0.00021643,2]
[328987804,1718043060455,-2279.25,0.00021643,2]
[328987805,1718043060465,-500.0,0.00021643,2]
[328987806,1718043060476,-1339.18,0.00021643,2]
[328987807,1718043060486,-500.0,0.00021643,2]
[328987808,1718043060496,-5884.81,0.00021643,2]
[328987809,1718043060506,-1045.86,0.00021643,2]
[328987810,1718043060517,-1375.25,0.00021643,2]
[328987811,1718043060526,-500.0,0.00021643,2]
[328987812,1718043060539,-709.89,0.00021643,2]
[328987813,1718043060549,-500.0,0.00021643,2]
[328987814,1718043060562,-2312.91,0.00021643,2]
[328987815,1718043060574,-500.0,0.00021643,2]
[328987816,1718043060585,-665.55,0.00021643,2]
[328987817,1718043060595,-500.0,0.00021643,2]
[328987818,1718043060605,-1274.17,0.00021643,2]
[328987819,1718043060615,-500.0,0.00021643,2]
[328987820,1718043060625,-1002.08,0.00021643,2]
[328987821,1718043060635,-500.0,0.00021643,2]
[328987822,1718043060645,-809.15,0.00021643,2]
[328987823,1718043060656,-555.44,0.00021643,2]
[328987824,1718043060667,-500.0,0.00021643,2]
[328987825,1718043060677,-3106.63,0.00021643,2]
[328987826,1718043060688,-1322.06,0.00021643,2]
[328987827,1718043060698,-500.0,0.00021643,2]
[328987828,1718043060708,-500.0,0.00021643,2]
[328987829,1718043060717,-151.0,0.00021747,2]
[328987830,1718043060726,-4239.03743968,0.00021808,2]
[328987831,1718043060736,-154.00229419,0.00021885,3]
[328987832,1718043060746,-500.0,0.00021916,2]
[328987833,1718043060755,-1272.23,0.00021916,2]
[328987834,1718043060764,-169.18,0.00021917,2]
[328987835,1718043060774,-590.69,0.00021917,2]
[328987836,1718043060783,-500.0,0.00021917,2]
[328987837,1718043060793,-458.78,0.00021917,2]
[328987838,1718043060805,-500.0,0.00021917,2]
[328987839,1718043060815,-644.01,0.00021917,2]
[328987840,1718043060824,-500.0,0.00021917,2]
[328987841,1718043060833,-500.0,0.00021917,2]
[328987842,1718043060842,-200.0,0.00021917,2]
[328987843,1718043060852,-151.0,0.00021917,2]
[328987844,1718043060862,-590.84,0.00021917,2]
[328987845,1718043060872,-500.0,0.00021917,2]
[328987846,1718043060882,-757.38,0.00021917,2]
[328987847,1718043060892,-500.0,0.00021917,2]
[328987848,1718043060901,-732.29,0.00021917,2]
[328987849,1718043060911,-608.33,0.00021917,2]
[328987850,1718043060922,-720.52,0.00021917,2]
[328987851,1718043060932,-2279.25,0.00021917,2]
[328987852,1718043060943,-500.0,0.00021917,2]
[328987853,1718043060953,-151.0,0.00021917,2]
[328987854,1718043060964,-1339.18,0.00021917,2]
[328987855,1718043060974,-500.0,0.00021917,2]
[328987856,1718043060986,-5884.81,0.00021917,2]
[328987857,1718043060996,-1045.86,0.00021917,2]
[328987858,1718043061007,-151.0,0.00021917,2]
[328987859,1718043061018,-1375.25,0.00021917,2]
[328987860,1718043061028,-151.0,0.00021917,2]
[328987861,1718043061039,-500.0,0.00021917,2]
[328987862,1718043061048,-709.89,0.00021917,2]
[328987863,1718043061059,-500.0,0.00021917,2]
[328987864,1718043061069,-2312.91,0.00021917,2]
[328987865,1718043061080,-540.66,0.00021917,2]
[328987866,1718043061090,-665.55,0.00021917,2]
[328987867,1718043061100,-500.0,0.00021917,2]
[328987868,1718043061111,-1274.17,0.00021917,2]
[328987869,1718043061121,-479.5349877,0.00021917,2]
[328987870,1718043061131,-1002.08,0.00021917,2]
[328987871,1718043061140,-500.0,0.00021917,2]
[328987872,1718043061151,-809.15,0.00021917,2]
[328987873,1718043061160,-555.44,0.00021917,2]
[328987874,1718043061171,-500.0,0.00021917,2]
[328987875,1718043061181,-3106.63,0.00021917,2]
[328987876,1718043061192,-1322.06,0.00021917,2]
[328987877,1718043061201,-649.92739043,0.00021917,2]
[328987878,1718043061212,-500.0,0.00021917,2]
[328987879,1718043061222,-166.666666,0.00021918,2]
[328987880,1718043061233,-587.0,0.00021938,2]
[328987881,1718043061243,-151.0,0.0002198,3]
[328987882,1718043061253,-283.0,0.00022,2]
[328987883,1718043061263,-647.85700855,0.00022052,2]
[328987884,1718043061273,-254.0,0.000221,2]
[328987885,1718043061283,-13481.93972849,0.00022107,2]
[328987886,1718043061292,-225.1695884,0.00022107,2]
[328987887,1718043061304,-500.0,0.0002219,2]
[328987888,1718043061314,-1272.23,0.0002219,2]
[328987889,1718043061324,-590.69,0.00022191,2]
[328987890,1718043061334,-500.0,0.00022191,2]
[328987891,1718043061344,-500.0,0.00022191,2]
[328987892,1718043061355,-644.01,0.00022191,2]
[328987893,1718043061364,-500.0,0.00022191,2]
[328987894,1718043061374,-500.0,0.00022191,2]
[328987895,1718043061384,-151.0,0.00022191,2]
[328987896,1718043061394,-590.84,0.00022191,2]
[328987897,1718043061404,-500.0,0.00022191,2]
[328987898,1718043061414,-757.38,0.00022191,2]
[328987899,1718043061521,-500.0,0.00022191,2]
[328987900,1718043061533,-732.29,0.00022191,2]
[328987901,1718043061545,-608.33,0.00022191,2]
[328987902,1718043061560,-720.52,0.00022191,2]
[328987903,1718043061570,-2279.25,0.00022191,2]
[328987904,1718043061581,-500.0,0.00022191,2]
[328987905,1718043061592,-1339.18,0.00022191,2]
[328987906,1718043061602,-427.76,0.00022191,2]
[328987907,1718043061613,-5884.81,0.00022191,2]
[328987908,1718043061623,-1045.86,0.00022191,2]
[328987909,1718043061634,-1375.25,0.00022191,2]
[328987910,1718043061645,-500.0,0.00022191,2]
[328987911,1718043061654,-709.89,0.00022191,2]
[328987912,1718043061665,-500.0,0.00022191,2]
[328987913,1718043061674,-2312.91,0.00022191,2]
[328987914,1718043061685,-665.55,0.00022191,2]
[328987915,1718043061695,-500.0,0.00022191,2]
[328987916,1718043061706,-1274.17,0.00022191,2]
[328987917,1718043061717,-1002.08,0.00022191,2]
[328987918,1718043061727,-500.0,0.00022191,2]